fUSD/lending_fUSD_20260629
["ID","MTS","AMOUNT","RATE_DAILY","PERIOD"]
[426695120,1782748252000,-800.0,0.000367,13]
[426695117,1782748252000,-160.0,0.00036664,11]
[426695118,1782748252000,-160.0,0.00036664,11]
[426695112,1782748252000,-482.62,0.00036652,2]
[426695121,1782748252000,-151.09934801,0.0003673,2]
[426695122,1782748252000,-1948.0,0.0003673,5]
[426695177,1782748253000,-956.74466435,0.00036986,120]
[426695176,1782748253000,-956.74466435,0.00036986,120]
[426695187,1782748253000,-151.0,0.00036996,30]
[426695185,1782748253000,-151.0,0.00036996,30]
[426695193,1782748253000,-151.0,0.00036996,30]
[426695188,1782748253000,-151.0,0.00036996,30]
[426695194,1782748253000,-151.0,0.00036996,30]
[426695186,1782748253000,-151.0,0.00036996,30]
[426695184,1782748253000,-151.0,0.00036996,30]
[426695195,1782748253000,-221.152729,0.00036996,30]
[426695196,1782748253000,-261.591312,0.00036996,30]
[426695191,1782748253000,-294.03838,0.00036996,30]
[426695190,1782748253000,-151.0,0.00036996,30]
[426695189,1782748253000,-151.0,0.00036996,30]
[426695199,1782748253000,-800.0,0.00037,45]
[426695201,1782748253000,-800.0,0.00037,45]
[426695202,1782748253000,-800.0,0.00037,45]
[426695198,1782748253000,-80001.0,0.00037,30]
[426695175,1782748253000,-956.74466435,0.00036986,120]
[426695205,1782748253000,-151.0,0.00037,30]
[426695192,1782748253000,-263.2,0.00036996,30]
[426695181,1782748253000,-194.907649,0.00036996,30]
[426695163,1782748253000,-260.30222,0.00036986,30]
[426695182,1782748253000,-151.0,0.00036996,30]
[426695200,1782748253000,-244.58238658,0.00037,120]
[426695158,1782748253000,-839.027239,0.00036986,30]
[426695160,1782748253000,-839.027239,0.00036986,30]
[426695159,1782748253000,-839.027239,0.00036986,30]
[426695157,1782748253000,-839.027239,0.00036986,30]
[426695172,1782748253000,-956.74466435,0.00036986,120]
[426695162,1782748253000,-151.0,0.00036986,7]
[426695161,1782748253000,-151.0,0.00036986,30]
[426695164,1782748253000,-151.0,0.00036986,7]
[426695165,1782748253000,-151.0,0.00036986,30]
[426695170,1782748253000,-956.74466435,0.00036986,120]
[426695166,1782748253000,-151.0,0.00036986,30]
[426695167,1782748253000,-168.997881,0.00036986,30]
[426695171,1782748253000,-956.74466435,0.00036986,120]
[426695169,1782748253000,-956.74466435,0.00036986,120]
[426695168,1782748253000,-956.74466435,0.00036986,120]
[426695174,1782748253000,-956.74466435,0.00036986,120]
[426695178,1782748253000,-1199.9259051,0.00036996,2]
[426695179,1782748253000,-48059.5206936,0.00036996,2]
[426695173,1782748253000,-956.74466435,0.00036986,120]
[426695180,1782748253000,-151.0,0.00036996,30]
[426695183,1782748253000,-151.0,0.00036996,30]
[426695203,1782748253000,-151.0,0.00037,30]
[426695204,1782748253000,-239.909808,0.00037,30]
[426695235,1782748253000,-2546.857,0.000371,60]
[426695231,1782748253000,-11995.89371474,0.00037075,120]
[426695232,1782748253000,-200.0,0.00037094,10]
[426695233,1782748253000,-1359.44,0.000371,120]
[426695237,1782748253000,-10334.58311308,0.000371,2]
[426695240,1782748253000,-751.6700032,0.00037119,2]
[426695238,1782748253000,-162.371078,0.00037108,115]
[426695239,1782748253000,-11995.89371474,0.00037117,120]
[426695234,1782748253000,-2546.857,0.000371,60]
[426695236,1782748253000,-2546.85,0.000371,60]
[426695242,1782748253000,-198.19083965,0.00037173,2]
[426695244,1782748253000,-167.89655409,0.00037183,22]
[426695249,1782748253000,-491.10225917,0.00037195,60]
[426695247,1782748253000,-461.21,0.00037183,120]
[426695243,1782748253000,-1500.0,0.00037179,2]
[426695250,1782748253000,-572.34641523,0.000372,30]
[426695246,1782748253000,-618.94,0.00037183,120]
[426695248,1782748253000,-308.55755212,0.0003719,2]
[426695245,1782748253000,-242.41,0.00037183,120]
[426695251,1782748253000,-895.36435168,0.000372,30]
[426695252,1782748253000,-437.37,0.000372,7]
[426695197,1782748253000,-203.789796,0.00036996,30]
[426695230,1782748253000,-294.0,0.00037073,3]
[426695229,1782748253000,-238.74331729,0.00037068,3]
[426695241,1782748253000,-11995.89371474,0.00037159,120]
[426695227,1782748253000,-166.58093374,0.00037063,2]
[426695207,1782748253000,-151.0,0.00037,30]
[426695206,1782748253000,-151.0,0.00037,30]
[426695209,1782748253000,-151.0,0.00037,30]
[426695208,1782748253000,-151.0,0.00037,30]
[426695210,1782748253000,-151.0,0.00037,30]
[426695211,1782748253000,-151.0,0.00037,30]
[426695220,1782748253000,-191.54,0.00037037,120]
[426695212,1782748253000,-151.0,0.00037,30]
[426695214,1782748253000,-542.03955457,0.00037013,2]
[426695218,1782748253000,-574.81,0.00037037,120]
[426695216,1782748253000,-262.0,0.00037033,7]
[426695213,1782748253000,-1312.04292536,0.00037,7]
[426695215,1782748253000,-520.0,0.00037033,7]
[426695219,1782748253000,-1471.96,0.00037037,120]
[426695221,1782748253000,-1926.03,0.00037037,120]
[426695222,1782748253000,-150.0,0.00037037,120]
[426695228,1782748253000,-151.09934801,0.00037066,2]
[426695223,1782748253000,-166.25,0.00037037,120]
[426695225,1782748253000,-4393.0,0.0003705,120]
[426695226,1782748253000,-3524.0,0.0003705,120]
[426695217,1782748253000,-11995.89371474,0.00037034,120]
[426695224,1782748253000,-252.87,0.00037037,120]
[426695282,1782748254000,-175.21951814,0.000373,7]
[426695292,1782748254000,-168.94523899,0.00037308,7]
[426695290,1782748254000,-151.0,0.00037308,7]
[426695287,1782748254000,-200.0,0.00037308,2]
[426695281,1782748254000,-824.85309891,0.00037299,14]
[426695283,1782748254000,-200.0,0.000373,10]
[426695289,1782748254000,-163.43448267,0.00037308,7]
[426695286,1782748254000,-2000.0,0.00037307,22]
[426695284,1782748254000,-310.0,0.000373,2]
[426695291,1782748254000,-151.0,0.00037308,7]
[426695288,1782748254000,-153.0,0.00037308,7]
[426695293,1782748254000,-174.31195855,0.00037308,7]
[426695307,1782748254000,-11995.89371474,0.00037366,120]
[426695295,1782748254000,-1049.24340804,0.00037308,2]
[426695299,1782748254000,-297.42034429,0.00037311,120]
[426695297,1782748254000,-8934.0,0.00037308,5]
[426695298,1782748254000,-9177.0,0.00037308,5]
[426695300,1782748254000,-8689.1545692,0.00037323,2]
[426695296,1782748254000,-546567.60460824,0.00037308,22]
[426695301,1782748254000,-242.5355577,0.00037323,2]
[426695304,1782748254000,-10723.528549,0.00037347,2]
[426695306,1782748254000,-1106.64558841,0.00037355,2]
[426695302,1782748254000,-11995.89371474,0.00037325,120]
[426695285,1782748254000,-317.0,0.000373,2]
[426695294,1782748254000,-298.97416003,0.00037308,7]
[426695280,1782748254000,-2000.0,0.00037299,120]
[426695256,1782748254000,-330.20347994,0.00037239,2]
[426695272,1782748254000,-150.0,0.00037289,30]
[426695254,1782748254000,-159.06645113,0.0003722,59]
[426695253,1782748254000,-11995.89371474,0.000372,120]
[426695255,1782748254000,-166.0,0.0003723,120]
[426695258,1782748254000,-8960.0,0.00037244,5]
[426695265,1782748254000,-179.7755725,0.00037274,7]
[426695257,1782748254000,-11995.89371474,0.00037242,120]
[426695266,1782748254000,-2546.42764753,0.00037279,7]
[426695267,1782748254000,-11995.89371474,0.00037283,120]
[426695260,1782748254000,-500.0,0.00037263,2]
[426695259,1782748254000,-9055.0,0.00037244,5]
[426695261,1782748254000,-1106.64558841,0.00037264,2]
[426695277,1782748254000,-172.32,0.00037295,30]
[426695263,1782748254000,-81952.9878,0.00037273,30]
[426695262,1782748254000,-450.0,0.0003727,2]
[426695268,1782748254000,-183.67189431,0.00037285,2]
[426695269,1782748254000,-301.19389132,0.00037285,2]
[426695273,1782748254000,-156.45,0.00037289,30]
[426695276,1782748254000,-307.42,0.00037295,30]
[426695274,1782748254000,-30205.04162982,0.0003729,4]
[426695275,1782748254000,-300.0,0.00037295,30]
[426695278,1782748254000,-2000.0,0.00037299,2]
[426695271,1782748254000,-169.55201972,0.00037285,2]
[426695270,1782748254000,-243.56566998,0.00037285,2]
[426695279,1782748254000,-2000.0,0.00037299,10]
[426695264,1782748254000,-500.0,0.00037273,120]
[426695305,1782748254000,-431.77962971,0.0003735,120]
[426695354,1782748254000,-300.0,0.0003741,2]
[426695311,1782748254000,-200.0,0.0003737,2]
[426695346,1782748254000,-265.274564,0.00037408,30]
[426695341,1782748254000,-500.0,0.00037408,120]
[426695340,1782748254000,-500.0,0.00037408,120]
[426695338,1782748254000,-500.0,0.00037408,120]
[426695339,1782748254000,-500.0,0.00037408,120]
[426695343,1782748254000,-500.0,0.00037408,120]
[426695344,1782748254000,-570.19560874,0.00037408,120]
[426695345,1782748254000,-11995.89371474,0.00037408,120]
[426695342,1782748254000,-214.87596859,0.00037408,120]
[426695348,1782748254000,-265.274564,0.00037408,30]
[426695347,1782748254000,-265.274564,0.00037408,30]
[426695336,1782748254000,-500.0,0.00037408,120]
[426695351,1782748254000,-156.361216,0.00037409,119]
[426695352,1782748254000,-181.19908886,0.0003741,2]
[426695355,1782748254000,-300.0,0.0003741,2]
[426695357,1782748254000,-211.23,0.0003741,30]
[426695353,1782748254000,-150.0,0.0003741,6]
[426695356,1782748254000,-177.22,0.0003741,2]
[426695358,1782748254000,-190.1,0.0003741,120]
[426695362,1782748254000,-333.83,0.0003744,120]
[426695359,1782748254000,-2392.7426425,0.00037425,2]
[426695360,1782748254000,-220.48113941,0.00037428,2]
[426695308,1782748254000,-288.60140141,0.00037368,120]
[426695361,1782748254000,-158.95144155,0.00037431,90]
[426695350,1782748254000,-2110.0,0.00037408,2]
[426695337,1782748254000,-500.0,0.00037408,120]
[426695349,1782748254000,-265.274564,0.00037408,30]
[426695330,1782748254000,-441.73,0.00037402,10]
[426695309,1782748254000,-151.28126695,0.00037368,120]
[426695334,1782748254000,-1129.0,0.00037408,5]
[426695312,1782748254000,-250.0,0.0003737,2]
[426695303,1782748254000,-161.14240609,0.00037336,90]
[426695322,1782748254000,-202.75,0.000374,15]
[426695314,1782748254000,-250.0,0.0003737,2]
[426695323,1782748254000,-32154.71930569,0.000374,30]
[426695315,1782748254000,-194.73755084,0.00037376,2]
[426695317,1782748254000,-352.64707502,0.00037383,2]
[426695318,1782748254000,-1781.35856451,0.00037383,2]
[426695316,1782748254000,-167.7202482,0.00037376,2]
[426695320,1782748254000,-50000.0,0.00037397,20]
[426695313,1782748254000,-203.52911153,0.0003737,2]
[426695319,1782748254000,-9481.06,0.00037394,30]
[426695335,1782748254000,-500.0,0.00037408,120]
[426695331,1782748254000,-151.09934801,0.00037402,2]
[426695328,1782748254000,-2000.0,0.000374,7]
[426695332,1782748254000,-352.05,0.00037402,30]
[426695333,1782748254000,-580.88,0.00037402,30]
[426695325,1782748254000,-300.0,0.000374,10]
[426695310,1782748254000,-250.0,0.0003737,2]
[426695329,1782748254000,-231.73897,0.00037401,89]
[426695327,1782748254000,-1436.61758662,0.000374,2]
[426695324,1782748254000,-203.76831455,0.000374,78]
[426695321,1782748254000,-29725.68815782,0.000374,120]
[426695326,1782748254000,-1522.93896515,0.000374,2]
[426695407,1782748255000,-2339.34707114,0.00037472,2]
[426695401,1782748255000,-272.107628,0.00037466,30]
[426695405,1782748255000,-437934.63797942,0.00037466,2]
[426695404,1782748255000,-437934.63797942,0.00037466,2]
[426695400,1782748255000,-151.0,0.00037466,30]
[426695396,1782748255000,-151.0,0.00037466,30]
[426695399,1782748255000,-151.0,0.00037466,30]
[426695402,1782748255000,-168.997881,0.00037466,30]
[426695395,1782748255000,-151.0,0.00037466,30]
[426695397,1782748255000,-151.0,0.00037466,30]
[426695417,1782748255000,-151.0,0.00037472,30]
[426695398,1782748255000,-151.0,0.00037466,30]
[426695403,1782748255000,-30000.0,0.00037466,2]
[426695419,1782748255000,-151.0,0.00037472,30]
[426695418,1782748255000,-151.0,0.00037472,30]
[426695408,1782748255000,-240.0,0.00037472,120]
[426695409,1782748255000,-197.0,0.00037472,120]
[426695410,1782748255000,-158.0,0.00037472,120]
[426695411,1782748255000,-154.0,0.00037472,120]
[426695412,1782748255000,-611.0,0.00037472,120]
[426695413,1782748255000,-151.0,0.00037472,30]
[426695416,1782748255000,-151.0,0.00037472,30]
[426695414,1782748255000,-151.0,0.00037472,30]
[426695415,1782748255000,-151.0,0.00037472,30]
[426695422,1782748255000,-151.0,0.00037472,30]
[426695421,1782748255000,-151.0,0.00037472,30]
[426695394,1782748255000,-151.0,0.00037466,30]
[426695406,1782748255000,-151.0,0.00037471,14]
[426695391,1782748255000,-151.0,0.00037466,30]
[426695368,1782748255000,-1796.61973665,0.00037462,2]
[426695390,1782748255000,-155.151369,0.00037466,30]
[426695420,1782748255000,-151.0,0.00037472,30]
[426695367,1782748255000,-218.98702663,0.00037458,120]
[426695365,1782748255000,-500.0,0.00037449,2]
[426695366,1782748255000,-218.98702663,0.00037458,120]
[426695363,1782748255000,-472.44996895,0.00037441,60]
[426695364,1782748255000,-154.1331,0.00037446,2]
[426695369,1782748255000,-3203.38,0.00037462,2]
[426695371,1782748255000,-161.457236,0.00037466,30]
[426695374,1782748255000,-151.0,0.00037466,30]
[426695373,1782748255000,-157.407604,0.00037466,7]
[426695381,1782748255000,-151.0,0.00037466,30]
[426695372,1782748255000,-151.0,0.00037466,30]
[426695377,1782748255000,-151.0,0.00037466,30]
[426695392,1782748255000,-151.0,0.00037466,30]
[426695378,1782748255000,-183.407149,0.00037466,30]
[426695370,1782748255000,-151.0,0.00037463,14]
[426695376,1782748255000,-203.587269,0.00037466,30]
[426695380,1782748255000,-151.0,0.00037466,30]
[426695379,1782748255000,-151.0,0.00037466,30]
[426695383,1782748255000,-839.027239,0.00037466,30]
[426695393,1782748255000,-151.0,0.00037466,30]
[426695382,1782748255000,-151.0,0.00037466,28]
[426695384,1782748255000,-839.027239,0.00037466,30]
[426695389,1782748255000,-151.0,0.00037466,30]
[426695385,1782748255000,-839.027239,0.00037466,30]
[426695387,1782748255000,-151.0,0.00037466,30]
[426695386,1782748255000,-839.027239,0.00037466,30]
[426695388,1782748255000,-151.0,0.00037466,7]
[426695375,1782748255000,-151.0,0.00037466,30]
[426695430,1782748255000,-666.0,0.00037475,30]
[426695473,1782748255000,-185.3,0.00037479,2]
[426695427,1782748255000,-155.312827,0.00037474,30]
[426695469,1782748255000,-644.64,0.00037479,2]
[426695457,1782748255000,-644.64,0.00037479,2]
[426695461,1782748255000,-644.64,0.00037479,2]
[426695464,1782748255000,-248.67,0.00037479,2]
[426695467,1782748255000,-185.3,0.00037479,2]
[426695460,1782748255000,-248.76,0.00037479,2]
[426695465,1782748255000,-185.3,0.00037479,2]
[426695466,1782748255000,-482.57,0.00037479,2]
[426695459,1782748255000,-644.64,0.00037479,2]
[426695462,1782748255000,-185.3,0.00037479,2]
[426695463,1782748255000,-482.64,0.00037479,2]
[426695470,1782748255000,-185.3,0.00037479,2]
[426695474,1782748255000,-185.3,0.00037479,2]
[426695476,1782748255000,-185.3,0.00037479,2]
[426695477,1782748255000,-185.3,0.00037479,2]
[426695479,1782748255000,-185.3,0.00037479,2]
[426695472,1782748255000,-185.3,0.00037479,2]
[426695478,1782748255000,-185.3,0.00037479,2]
[426695471,1782748255000,-644.35,0.00037479,2]
[426695480,1782748255000,-185.3,0.00037479,2]
[426695481,1782748255000,-185.3,0.00037479,2]
[426695482,1782748255000,-185.3,0.00037479,2]
[426695483,1782748255000,-185.3,0.00037479,2]
[426695484,1782748255000,-185.3,0.00037479,2]
[426695485,1782748255000,-185.3,0.00037479,2]
[426695486,1782748255000,-184.9,0.00037479,2]
[426695426,1782748255000,-151.0,0.00037474,30]
[426695458,1782748255000,-248.76,0.00037479,2]
[426695468,1782748255000,-185.3,0.00037479,2]
[426695475,1782748255000,-185.3,0.00037479,2]
[426695451,1782748255000,-151.0,0.00037479,2]
[426695423,1782748255000,-155.479638,0.00037472,30]
[426695453,1782748255000,-644.64,0.00037479,2]
[426695424,1782748255000,-292.30332366,0.00037474,120]
[426695425,1782748255000,-250.0,0.00037474,7]
[426695429,1782748255000,-300.0,0.00037475,10]
[426695428,1782748255000,-151.0,0.00037474,30]
[426695432,1782748255000,-159.0,0.00037476,120]
[426695434,1782748255000,-151.0,0.00037476,30]
[426695442,1782748255000,-482.55,0.00037479,2]
[426695443,1782748255000,-644.64,0.00037479,2]
[426695435,1782748255000,-151.0,0.00037476,30]
[426695431,1782748255000,-155.0,0.00037476,120]
[426695436,1782748255000,-151.0,0.00037476,30]
[426695438,1782748255000,-151.0,0.00037476,30]
[426695433,1782748255000,-158.0,0.00037476,120]
[426695440,1782748255000,-666.0,0.00037478,30]
[426695445,1782748255000,-248.76,0.00037479,2]
[426695454,1782748255000,-248.76,0.00037479,2]
[426695455,1782748255000,-644.64,0.00037479,2]
[426695456,1782748255000,-248.76,0.00037479,2]
[426695449,1782748255000,-151.0,0.00037479,2]
[426695447,1782748255000,-482.22,0.00037479,2]
[426695450,1782748255000,-151.78,0.00037479,2]
[426695446,1782748255000,-195.7,0.00037479,2]
[426695444,1782748255000,-647.56,0.00037479,2]
[426695441,1782748255000,-150.0,0.00037479,7]
[426695439,1782748255000,-300.0,0.00037478,10]
[426695437,1782748255000,-151.0,0.00037476,30]
[426695448,1782748255000,-573.63,0.00037479,2]
[426695501,1782748256000,-644.64,0.00037479,2]
[426695507,1782748256000,-248.76,0.00037479,2]
[426695504,1782748256000,-248.76,0.00037479,2]
[426695505,1782748256000,-151.0,0.00037479,2]
[426695520,1782748256000,-248.76,0.00037479,2]
[426695509,1782748256000,-151.0,0.00037479,2]
[426695510,1782748256000,-248.76,0.00037479,2]
[426695508,1782748256000,-482.64,0.00037479,2]
[426695512,1782748256000,-644.64,0.00037479,2]
[426695515,1782748256000,-482.64,0.00037479,2]
[426695513,1782748256000,-151.76,0.00037479,2]
[426695516,1782748256000,-642.32,0.00037479,2]
[426695511,1782748256000,-482.64,0.00037479,2]
[426695519,1782748256000,-482.6,0.00037479,2]
[426695506,1782748256000,-644.64,0.00037479,2]
[426695495,1782748256000,-151.0,0.00037479,2]
[426695500,1782748256000,-151.0,0.00037479,2]
[426695497,1782748256000,-248.76,0.00037479,2]
[426695499,1782748256000,-151.22,0.00037479,2]
[426695498,1782748256000,-577.19,0.00037479,2]
[426695496,1782748256000,-644.64,0.00037479,2]
[426695488,1782748256000,-248.76,0.00037479,2]
[426695487,1782748256000,-573.9,0.00037479,2]
[426695489,1782748256000,-151.0,0.00037479,2]
[426695491,1782748256000,-151.0,0.00037479,2]
[426695490,1782748256000,-644.64,0.00037479,2]
[426695494,1782748256000,-151.0,0.00037479,2]
[426695492,1782748256000,-573.9,0.00037479,2]
[426695493,1782748256000,-248.76,0.00037479,2]
[426695517,1782748256000,-248.76,0.00037479,2]
[426695502,1782748256000,-151.0,0.00037479,2]
[426695514,1782748256000,-248.76,0.00037479,2]
[426695503,1782748256000,-644.64,0.00037479,2]
[426695521,1782748256000,-396.11,0.00037479,2]
[426695518,1782748256000,-248.76,0.00037479,2]
[426695552,1782748256000,-168.997881,0.00036986,30]
[426695550,1782748256000,-300.0,0.0003376,2]
[426695551,1782748256000,-216.58458871,0.00034,10]
[426695546,1782748256000,-1000.0,0.00030137,4]
[426695549,1782748256000,-300.0,0.0003376,2]
[426695547,1782748256000,-854.57,0.00031507,6]
[426695544,1782748256000,-145.65223663,0.00028767,2]
[426695543,1782748256000,-1099.08179728,0.00027397,10]
[426695541,1782748256000,-2460.29036429,0.00027397,10]
[426695545,1782748256000,-854.34776337,0.00028767,2]
[426695542,1782748256000,-801.54783843,0.00027397,10]
[426695540,1782748256000,-3329.79,0.00037483,30]
[426695538,1782748256000,-158896.79222208,0.00037483,30]
[426695539,1782748256000,-36479.55,0.00037483,30]
[426695548,1782748256000,-300.0,0.0003376,2]
[426695535,1782748256000,-6061.89283329,0.00037483,30]
[426695523,1782748256000,-236.30487175,0.00037482,120]
[426695537,1782748256000,-18557.8949595,0.00037483,30]
[426695529,1782748256000,-500.0,0.00037482,120]
[426695522,1782748256000,-10996.22775472,0.00037482,62]
[426695525,1782748256000,-248.22935759,0.00037482,120]
[426695531,1782748256000,-1027.77236979,0.00037482,60]
[426695526,1782748256000,-150.31899883,0.00037482,120]
[426695524,1782748256000,-152.72375382,0.00037482,120]
[426695532,1782748256000,-67848.77447704,0.00037482,23]
[426695527,1782748256000,-158.31332977,0.00037482,120]
[426695530,1782748256000,-499.685,0.00037482,120]
[426695528,1782748256000,-500.0,0.00037482,120]
[426695533,1782748256000,-151.0,0.00037483,2]
[426695534,1782748256000,-233237.65972652,0.00037483,30]
[426695536,1782748256000,-18043.78802828,0.00037483,30]
[426695563,1782748257000,-84241.54072932,0.00037483,30]
[426695570,1782748257000,-1418.21218427,0.00037483,30]
[426695568,1782748257000,-1912.376312,0.00037483,30]
[426695567,1782748257000,-300.0,0.0003376,2]
[426695566,1782748257000,-1748.17389532,0.00037483,30]
[426695565,1782748257000,-4447.25939582,0.00037483,30]
[426695569,1782748257000,-55802.83860874,0.00037483,30]
[426695564,1782748257000,-568.73118344,0.00037483,30]
[426695557,1782748257000,-31009.53339127,0.00037483,30]
[426695561,1782748257000,-701.2988162,0.00037483,30]
[426695559,1782748257000,-1407.52319047,0.00037483,30]
[426695554,1782748257000,-168.997881,0.00037466,30]
[426695560,1782748257000,-24996.59696861,0.00037483,30]
[426695556,1782748257000,-33248.92008215,0.00037483,30]
[426695558,1782748257000,-14976.96952,0.00037483,30]
[426695555,1782748257000,-168.997881,0.00037466,30]
[426695572,1782748257000,-600.0,0.00037483,30]
[426695562,1782748257000,-358102.00685314,0.00037483,30]
[426695571,1782748257000,-255.0702,0.00037483,30]
[426695553,1782748257000,-168.997881,0.00036986,30]
[426695577,1782748257000,-4668.9163163,0.00037483,30]
[426695573,1782748257000,-9823.71904475,0.00037483,30]
[426695591,1782748257000,-231.86,0.00027672,7]
[426695587,1782748257000,-353.1,0.0002755,30]
[426695585,1782748257000,-992.85,0.0002755,30]
[426695586,1782748257000,-591.81,0.0002755,30]
[426695588,1782748257000,-231.86,0.0002758,7]
[426695589,1782748257000,-231.86,0.00027611,30]
[426695584,1782748257000,-231.86,0.0002755,2]
[426695590,1782748257000,-231.86,0.00027641,2]
[426695592,1782748257000,-231.86,0.00027702,30]
[426695581,1782748257000,-256014.87134631,0.00037483,30]
[426695582,1782748257000,-94832.4041855,0.00037483,30]
[426695580,1782748257000,-221.37599605,0.00037483,30]
[426695578,1782748257000,-523.46241767,0.00037483,30]
[426695579,1782748257000,-36.07434652,0.00037483,30]
[426695574,1782748257000,-4672.84380822,0.00037483,30]
[426695576,1782748257000,-1339992.86627758,0.00037483,30]
[426695575,1782748257000,-343.33730471,0.00037483,30]
[426695583,1782748257000,-406.0,0.00026515,2]
[426695607,1782748258000,-353.1,0.00028194,7]
[426695609,1782748258000,-992.85,0.00028355,2]
[426695606,1782748258000,-992.85,0.00028194,7]
[426695605,1782748258000,-299.69154102,0.00028033,30]
[426695603,1782748258000,-353.1,0.00028033,30]
[426695602,1782748258000,-992.85,0.00028033,30]
[426695601,1782748258000,-401.18285624,0.00027872,2]
[426695594,1782748258000,-353.1,0.00027711,7]
[426695593,1782748258000,-992.85,0.00027711,7]
[426695596,1782748258000,-231.86,0.00027733,2]
[426695600,1782748258000,-190.62714376,0.00027872,2]
[426695597,1782748258000,-136.57714376,0.00027872,2]
[426695598,1782748258000,-856.27285624,0.00027872,2]
[426695595,1782748258000,-591.81,0.00027711,7]
[426695608,1782748258000,-591.81,0.00028194,7]
[426695599,1782748258000,-353.1,0.00027872,2]
[426695611,1782748258000,-992.85,0.00028516,30]
[426695604,1782748258000,-292.11845898,0.00028033,30]
[426695612,1782748258000,-1101.0618519,0.0003376,2]
[426695628,1782748258000,-695.55,0.00037483,30]
[426695622,1782748258000,-10771.39233548,0.00037483,30]
[426695626,1782748258000,-992.85,0.00028677,7]
[426695627,1782748258000,-3109.94324602,0.00037483,30]
[426695624,1782748258000,-231.86,0.00027763,7]
[426695625,1782748258000,-353.1,0.00028355,2]
[426695621,1782748258000,-2380.5741598,0.00037483,30]
[426695623,1782748258000,-2358.72714298,0.00037483,30]
[426695617,1782748258000,-361.0,0.00037132,2]
[426695615,1782748258000,-168.997881,0.00036986,30]
[426695620,1782748258000,-4015.56615079,0.00037483,30]
[426695618,1782748258000,-481.0,0.00037142,2]
[426695616,1782748258000,-9000.0,0.00037,5]
[426695614,1782748258000,-962.0,0.000365,30]
[426695610,1782748258000,-591.81,0.00028355,2]
[426695619,1782748258000,-168.997881,0.00037466,30]
[426695613,1782748258000,-300.0,0.0003376,2]
[426695630,1782748334000,-151.0,0.00013566,2]
[426695631,1782748339000,400.0,0.000138,5]
[426695632,1782748341000,800.0,0.000139,5]
[426695634,1782748387000,-355.42,0.00012889,2]
[426695638,1782748388000,-266.46097856,0.00013569,2]
[426695637,1782748388000,-150.0,0.00013569,2]
[426695635,1782748388000,-150.0,0.00013568,2]
[426695636,1782748388000,-201.0520857,0.00013569,2]
[426695639,1782748393000,352.64707502,0.00013569,2]
[426695640,1782748398000,3879.83986072,0.00013469,2]
[426695642,1782748410000,300.0,0.000136,4]
[426695643,1782748412000,700.0,0.000137,5]
[426695644,1782748414000,1100.0,0.000138,5]
[426695645,1782748416000,1500.0,0.000139,5]
[426695646,1782748441000,-5150.083,0.00013298,2]
[426695696,1782748494000,-358.952,0.00013298,2]
[426695698,1782748494000,254.16403651,0.00014246,7]
[426695715,1782748547000,-523.63019151,0.00013468,2]
[426695731,1782748585000,1059.05182638,0.00013568,3]
[426695752,1782748601000,-157.22759901,0.00013368,2]
[426695765,1782748654000,-6369.33,0.00013191,2]
[426695769,1782748707000,-174.52,0.00012932,2]
[426695772,1782748760000,-240.4,0.00012793,2]